Cogmind - Beta 16.1 @@@ ROGUE MODE // 2026.05.02 @ 01:01:52 Player: Ren Result: Destroyed by CD-IZA(R) with Subdweller Machine Gun Performance ------------- Evolutions (0) 0 Regions Visited (2) 400 Robots Destroyed (40) 200 Value Destroyed (631) 631 Prototype IDs (3) 60 Alien Tech Used (0) 0 Bonus (0) 0 TOTAL SCORE: 1291 Bonus ------- None Cogmind --------- Core Integrity 0/250 Matter 230/300 Energy 238/250 System Corruption 0% Temperature Cool (0) Movement Rolling (120) Ox1 Location -10/Subcaves Parts ------- > --- POWER (1) -------- Ion Engine > --- PROPULSION (2) --- Subdweller Monowheel > --- UTILITY (2) ------ Medium Storage Unit > --- WEAPON (2) ------- Subdweller Beam Cannon Light Cannon > --- INVENTORY (10) --- Makeshift Power Source Meta Core Structural Scanner Visual Processing Unit Sensor Array Improved Terrain Scanner Medium Laser Light Cannon Grenade Launcher Peak State ------------ > --- POWER ------------ Subdweller Power Source > --- PROPULSION ------- Compact Wheel Subdweller Monowheel > --- UTILITY ---------- Medium Storage Unit Seismic Detector > --- WEAPON ----------- Medium Laser Subdweller Machine Gun > --- INVENTORY -------- Ion Engine Light Ion Engine Makeshift Power Source Structural Scanner Visual Processing Unit Sensor Array Improved Terrain Scanner Light Cannon Light Cannon Grenade Launcher [Rating: 11] Favorites ----------- Power Light Ion Engine Engine Light Ion Engine Propulsion Compact Wheel Wheel Compact Wheel Utility Seismic Detector Device Seismic Detector Storage Small Storage Unit Weapon Medium Laser Energy Gun Medium Laser Energy Cannon Subdweller Beam Cannon Ballistic Gun Light Assault Rifle Ballistic Cannon Light Cannon Launcher Grenade Launcher Build | -11 -10 -10 ------- Run | Yrd Mat Sub Slots Evolved . | . . . Power . | . . . Propulsion . | . . . Utility . | . . . Weapon . | . . . Parts Attached 20 | 8 4 8 Power 3 | 1 . 2 Engine 3 | 1 . 2 Core . | . . . Reactor . | . . . Propulsion 5 | 2 . 3 Treads . | . . . Leg . | . . . Wheel 5 | 2 . 3 Hover . | . . . Flight . | . . . Utility 4 | 3 1 . Device 2 | 2 . . Storage 2 | 1 1 . Processor . | . . . Hackware . | . . . Protection . | . . . Artifact . | . . . Weapon 8 | 2 3 3 Energy Gun 1 | 1 . . Energy Cannon 1 | . . 1 Ballistic Gun 2 | 1 . 1 Ballistic Cannon 2 | . 1 1 Launcher 2 | . 2 . Special Weapon . | . . . Impact Weapon . | . . . Slashing Weapon . | . . . Piercing Weapon . | . . . Special Melee Weapon . | . . . Unidentified Prototypes . | . . . Parts Lost 7 | . . 7 Power 1 | . . 1 Propulsion 4 | . . 4 Utility 1 | . . 1 Weapon 1 | . . 1 Highest Loss Streak 2 | . . 2 To Critical Strikes . | . . . Average Backups 6 | . 4 8 Power . | . . 1 Propulsion . | . . . Utility 3 | . 3 4 Weapon 1 | . 1 2 Tool/Special . | . . . Unused Backups 5 | . . 5 Power 1 | . . 1 Propulsion . | . . . Utility 4 | . . 4 Weapon . | . . . Tool/Special . | . . . Average Slot Usage (%) 97 | . 98 96 Engine 13 | . 13 13 Wheel 27 | . 28 27 Device 12 | . 13 11 Storage 14 | . 14 14 Energy Gun 10 | . 13 7 Ballistic Gun 9 | . 11 6 Ballistic Cannon 4 | . 1 6 Launcher 3 | . . 5 Peak Build Rating 11 | 7 8 11 Average Rating 7 | 5 7 8 On Entrance 5 | . 7 8 Avg Prop Armor Cover (%) . | . . . Naked Turns . | . . . Heaviest Build 26 | 12 19 26 Greatest Support 40 | 32 32 40 Greatest Overweight (x) 1 | . . 1 Average Overweight (x) . | . . . Largest Inventory Capacity 10 | 8 10 10 Average Capacity 8 | 7 8 10 Most Carried 10 | 3 8 10 Average Carried 6 | . 4 8 Final Capacity 10 | 8 10 10 Final Carried 9 | 1 8 9 Class Distribution -------------------- 92% | Mutant 7% | Scavenger-Mutant Dominant Class ---------------- Mutant | -10/Materials Mutant | -10/Subcaves Resources | -11 -10 -10 ----------- Run | Yrd Mat Sub Matter Collected 778 | 302 245 231 Remotely . | . . . Salvage Created 885 | 160 460 265 Parts 75 | 14 40 21 Haulers Intercepted 2 | . 2 . Recyclers Shooed 1 | . 1 . Parts Field Recycled . | . . . Retrieved Matter . | . . . Parts Self-Destructed 8 | . . 8 Prevented . | . . . Parts Restored . | . . . Kills | -11 -10 -10 ------- Run | Yrd Mat Sub Combat Hostiles Destroyed 22 | . 11 11 Guns 8 | . 4 4 Cannons 3 | . . 3 AOE 11 | . 7 4 Classes Destroyed 9 | 2 6 1 Worker 2 | . 2 . Builder 3 | . 3 . Tunneler 6 | 4 2 . Hauler 2 | . 2 . Recycler 2 | 1 1 . Watcher 3 | . 3 . Swarmer 12 | . 9 3 Grunt 2 | . 2 . Subdweller 8 | . . 8 Best Kill Streak 6 | 2 6 3 Combat Bots Only 4 | . 4 3 Max Kills in Single Turn 3 | 1 3 2 Gunslinging . | . . . Exploded 2 | . 2 2 Melee . | . . . Uniques/NPCs Destroyed . | . . . Combat | -11 -10 -10 -------- Run | Yrd Mat Sub Hostile Shots Fired 95 | . 41 54 Missed 31 | . 14 17 Hits 64 | . 27 37 Projectile 64 | . 27 37 AOE 1 | . . 1 Critical Strikes 1 | . . 1 Damage Taken 1098 | . 259 839 Core 254 | . 28 226 Absorbed by Shields . | . . . Regen/Repaired (Parts) 91 | . 91 . Core Remaining (%) 100 | 100 . . Volleys Fired 129 | 22 65 42 Largest 2 | 2 2 2 Hottest 110 | 70 80 110 Shots Fired 240 | 44 122 74 Gun 197 | 44 111 42 Cannon 25 | . 4 21 Launcher 18 | . 7 11 Special . | . . . Kinetic 109 | 22 53 34 Thermal 113 | 22 62 29 Explosive 18 | . 7 11 Electromagnetic . | . . . Robot Hit Streak 22 | 5 9 22 Robot Miss Streak 7 | 2 7 1 Penetration Max . | . . . Secondary Targets . | . . . Shots Hit Robots 136 | 25 59 52 Core Hits 68 | 9 40 19 Critical Kills . | . . . Critical Parts Destroyed . | . . . Critical Strikes 10 | 2 4 4 Burn 10 | 2 4 4 Melee Attacks . | . . . Impact . | . . . Slashing . | . . . Piercing . | . . . Sneak Attacks . | . . . Combat Hostiles . | . . . Follow-up Attacks . | . . . Damage Inflicted 2633 | 273 1247 1113 Guns 1430 | 273 624 533 Cannons 381 | . 39 342 Explosions 822 | . 584 238 Melee . | . . . Ramming . | . . . Kinetic 823 | 100 278 445 Thermal 988 | 173 385 430 Explosive 822 | . 584 238 Electromagnetic . | . . . Impact . | . . . Slashing . | . . . Piercing . | . . . Highest Corruption . | . . . Average Corruption . | . . . Corruption Purged . | . . . Corruption Blocked . | . . . Overload Shots . | . . . Overflow Damage 13 | . 13 . Projectiles . | . . . Explosions 13 | . 13 . Melee . | . . . Knockbacks 2 | . 1 1 Impact . | . . . Kinetic 2 | . 1 1 Secondary . | . . . Self-Inflicted Damage 22 | . 20 2 Shots 2 | . 1 1 Rammed . | . . . Targets Rammed . | . . . Kicked . | . . . Crushed . | . . . Highest Temperature 90 | 70 90 2 Average Temperature 33 | 27 36 2 Received Heat Transfer 174 | . 24 150 Siege Activations . | . . . Martial Activations . | . . . Shielding Activations . | . . . Robots Disrupted . | . . . Combat Hostiles . | . . . Robots Corrupted . | . . . Combat Hostiles . | . . . Parts Fried . | . . . Impact Corruptions . | . . . Robots Melted . | . . . Combat Hostiles . | . . . Parts Melted 11 | 1 3 7 Heat Transferred 3404 | 666 1443 1295 Parts Sabotaged . | . . . Parts Stolen . | . . . Parts Stripped . | . . . Power Chain Reactions . | . . . Alert | -11 -10 -10 ------- Run | Yrd Mat Sub Maximum Alert Level . | . . . Low Security (%) 100 | 100 100 . Level 1 . | . . . Level 2 . | . . . Level 3 . | . . . Level 4 . | . . . Level 5 . | . . . High Security . | . . . Max Security . | . . . Peak Influence 179 | 5 179 . Initial . | . . . Average 71 | 1 83 . Influence Increases 554 | 25 444 85 Destroy 0b10 Robot/C 280 | . 220 60 Destroy 0b10 Robot/NC 90 | 25 65 . Destroy Leader 70 | . 60 10 Successful Hack 23 | . 23 . Destroy Structure 46 | . 46 . Lose Combat Pursuer 45 | . 30 15 Influence Decreases 554 | 25 372 157 Entered New Map 36 | . . 36 Time Decay 518 | 25 372 121 Squads Dispatched 2 | . 2 . Investigation 1 | . 1 . Extermination . | . . . Reinforcement 1 | . 1 . Assault . | . . . Garrison . | . . . Intercept . | . . . Searches Triggered . | . . . Construction Impeded . | . . . Haulers Reinforced . | . . . Active Scanning Responses . | . . . Cargo Convoy Interrupts . | . . . Stealth | -11 -10 -10 --------- Run | Yrd Mat Sub Distress Signals 4 | . 4 . Communications Jammed . | . . . Distress Signals . | . . . Times Spotted 33 | . 19 14 Peak Tracking Total 5 | . 5 3 Tactical Retreats 4 | . 2 2 Traps | -11 -10 -10 ------- Run | Yrd Mat Sub Traps Triggered 1 | . 1 . Indirectly . | . . . Trap Hack Attempts . | . . . Triggered . | . . . Disarmed . | . . . Reprogrammed . | . . . Reused . | . . . Traps Extracted . | . . . Installed . | . . . Triggered . | . . . Machines | -11 -10 -10 ---------- Run | Yrd Mat Sub Machines Disabled . | . . . Max in Single Turn . | . . . Machines Repaired . | . . . Machines Dismantled . | . . . Machines Sabotaged . | . . . Overloaded Fab Kills . | . . . Hacking | -11 -10 -10 --------- Run | Yrd Mat Sub Machines Accessed 6 | . 6 . Terminals 4 | . 4 . Fabricators . | . . . Repair Stations 1 | . 1 . Recycling Units 1 | . 1 . Scanalyzers . | . . . Garrison Access . | . . . Total Hacks 20 | . 20 . Successful 15 | . 15 . Failed 5 | . 5 . Catastrophic 1 | . 1 . Database Lockouts . | . . . Manual 5 | . 5 . Terminals 12 | . 12 . Fabricators . | . . . Repair Stations 6 | . 6 . Recycling Units 2 | . 2 . Scanalyzers . | . . . Garrison Access . | . . . Terminal Hacks 6 | . 6 . Prototype ID Bank 2 | . 2 . Locate Traps 2 | . 2 . Zone Layout 2 | . 2 . Fabricator Hacks . | . . . Repair Station Hacks 6 | . 6 . Scan Component 3 | . 3 . Repair 3 | . 3 . Recycling Unit Hacks 1 | . 1 . Report Inventory 1 | . 1 . Scanalyzer . | . . . Garrison Access Hacks . | . . . Unauthorized Hacks 2 | . 2 . Terminals 2 | . 2 . Botnet 2 | . 2 . Fabricators . | . . . Repair Stations . | . . . Recycling Units . | . . . Scanalyzers . | . . . Garrison Access . | . . . Data Cores Recovered . | . . . Used . | . . . Hacking Detections 6 | . 6 . Full Trace Events . | . . . Feedback Events . | . . . Feedback Blocked . | . . . Robot Schematics Acquired . | . . . Robots Built . | . . . Authchips . | . . . Time . | . . . Total Robot Build Rating . | . . . Part Schematics Acquired . | . . . Parts Built . | . . . Authchips . | . . . Time . | . . . Total Part Build Rating . | . . . Part Studies Acquired . | . . . Parts Repaired 3 | . 3 . Time 78 | . 78 . Parts Recycled . | . . . Recycled Matter . | . . . Retrieved Matter . | . . . Retrieved Components . | . . . Parts Scanalyzed . | . . . Part Schematics Acquired . | . . . Parts Damaged . | . . . Bothacking | -11 -10 -10 ------------ Run | Yrd Mat Sub Used RIF Installer . | . . . Robots Hacked . | . . . Non-combat . | . . . Combat . | . . . Robot Hacks Applied . | . . . Relay Couplers Released . | . . . Fabnet Peak Effective % . | . . . Robots Rewired . | . . . Allies Hacked . | . . . Hacks Repelled . | . . . Allies | -11 -10 -10 -------- Run | Yrd Mat Sub Total Allies . | . . . Largest Group . | . . . Highest-Rated Group . | . . . Highest-Rated Ally . | . . . Total Orders . | . . . Ally Attacks . | . . . Total Damage . | . . . Kills . | . . . Allies Corrupted . | . . . Allies Melted . | . . . Intel | -11 -10 -10 ------- Run | Yrd Mat Sub Active Infowar (turns) 1678 | 61 897 720 Seismic 1678 | 61 897 720 Robot Analysis Total . | . . . Derelict Logs Recovered 2 | . . 2 Drone Launches . | . . . Drone Recoveries . | . . . Exploration | -11 -10 -10 ------------- Run | Yrd Mat Sub Turns Passed 1969 | 166 923 880 Spaces Moved 1289 | 91 546 652 Core 2 | 2 . . Treads . | . . . Legs . | . . . Wheels 1287 | 89 546 652 Hover . | . . . Flight . | . . . Fastest Speed 50 | 50 100 90 Average Speed 101 | 98 100 102 Slowest Speed 115 | 100 100 115 Overloaded Moves . | . . . Propulsion Burnouts . | . . . Robots Hopped . | . . . Potential Cave-ins . | . . . Cave-ins Triggered . | . . . Exploration Rate (%) 40 | 4 82 34 Regions Visited 2 Branch Regions 1 Pre-discovered Areas . | . . . Known Exits Taken . | . . . Unknown Exits Taken 2 | 1 1 . Scrap Searched 2 | . . 2 Spaces Dug 3 | . . 3 Terrain Destroyed 102 | . 46 56 Melee . | . . . Projectile 1 | . . 1 AOE 101 | . 46 55 Terrain Rammed . | . . . Walls Destroyed . | . . . Machines Disabled . | . . . Actions | -11 -10 -10 --------- Run | Yrd Mat Sub Total 1720 | 124 807 789 Wait 250 | . 174 76 Move 1287 | 90 545 652 Hop . | . . . Pick Up 16 | 2 9 5 Fast Attach 11 | 7 3 1 Attach 5 | 1 . 4 Detach 1 | 1 . . Swap 16 | . 8 8 Drop 5 | 1 3 1 Fire 129 | 22 65 42 Melee . | . . . Ram . | . . . Kick . | . . . Crush . | . . . Escape Stasis . | . . . Rewire . | . . . Trap . | . . . Miscellaneous . | . . . Route ------- -11/Scrapyard -10/Materials (discovered 5 exits: [*Mat x2] / [*Min x2] / [*Sub]) -10/Subcaves History --------- Turn | Location | Event 19 | -11/Scrapyard | Discovered new exit (range 15) 167 | -11/Scrapyard | Entered Materials 316 | -10/Materials | Build established: Mutant 335 | -10/Materials | Discovered new exit (range 6) 536 | -10/Materials | Discovered new exit (range 16) 713 | -10/Materials | Repaired Seismic Detector 741 | -10/Materials | Repaired Med. Laser 768 | -10/Materials | Repaired Lgt. Ion Engine 776 | -10/Materials | Discovered new exit (range 9) 930 | -10/Materials | Discovered new exit (range 6) 992 | -10/Materials | Discovered new exit (range 14) 1090 | -10/Materials | Entered Subcaves 1091 | -10/Subcaves | Approached by a straggling Scientist 1091 | -10/Subcaves | Learned Materials garrison access intel 1201 | -10/Subcaves | Learned Materials security intel 1345 | -10/Subcaves | A swath of the cavern ceiling suddenly collapsed 1880 | -10/Subcaves | Core integrity fell below 50% 1920 | -10/Subcaves | A Subdweller sparked back to life 1920 | -10/Subcaves | A Subdweller sparked back to life 1920 | -10/Subcaves | A Subdweller sparked back to life 1922 | -10/Subcaves | Core integrity fell below 20% 1951 | -10/Subcaves | Found Prototype Power Core 1966 | -10/Subcaves | Ambushed by Subdweller buried in earth 1970 | -10/Subcaves | Destroyed by CD-IZA(R) with Subdweller Machine Gun Last Messages --------------- NM-GK4(R) destroyed. Acquired Sub. Beam Cannon. Acquired 40 matter. Acquired 8 matter. Acquired 27 matter. Acquired 3 matter. YU-ZCH(R) creaks and sparks as it begins to move. UA-V9H(R) creaks and sparks as it begins to move. EM-HV9(R) creaks and sparks as it begins to move. UA-V9H(R) destroyed. EM-HV9(R) knocked back. Sub. Power Source melted. Sub. Optics melted. EM-HV9(R) destroyed. Acquired Prototype Power Core. Sub. Monowheel destroyed. CD-IZA(R): "HIDIE!" Map ----- +----------------------------------------------------+ | ??## #?###??????????????????????????????????????? | | ?## #??????????????????????????????????????????? | | ## ##??????????????????????????????????????????? | | # ##???????????????????????????????????????????? | | ## #????????????????????????????????????????????? | | ## #????????????????????????????????????????????? | | # #????????????????????????????????????????????? | | ####??????????????????????????????????????????? | | ##?????????????????????????????????????????? | | #?????????????????????????????????????????? | | ## #?????????????????????????????????????????? | | ## #?????????????????????????????????????????? | | ## #?????????????????????????????????????????? | | ### #?????????????????????????????????????????? | | ?## ###?????????????????????????????????????????? | | ?# #??????????##???????#???????????????????????? | | ?# #????###???# ##????#;##?????????????????????? | | ?# ###?## ##???#"###### ####??????????????????? | | ?# ### #???#*/& ## ##?????????????????? | | ?##""" ##??## ### #?????????????????? | | ??## #### ##### # #?????????????????? | | ???####??# ## [! #?????????????????? | | ????????## %=!%= #??????????????????? | | ????????# # ##*% ;#??????????????????? | | ???????## ####;R]! ;#??????????????????? | | ???????# #%;@ #??????????????????? | | ???????# # R; #??????????????????? | | ???????# ## "" ## # ;; ;#??????????????????? | | ??????## ## &# %* #####;;;#??????????????????? | | ???#### #" ## ???####??????????????????? | | ??## ###" #?# ???????????????????????? | | ?## ##?# " #?? ?????????????????????? | | ?# ######"###?? #????????????????????? | | ?## #???????? #????????????????????? | | ??# ##??????? ## ?????????????????????? | | ??# ##?????? ###? ?????????????????????? | | ??## #???????##??????????????????????????? | | ???# #???????????????????????????????????? | | ???## #???????????????????????????????????? | | ????# ##????????????##?????????????????????? | | ###?# ## ##???????????? # ????????????????????? | | ###### ##???????????? ?????????????????????? | | ####????????? ??????????????????????? | | ## #####???? #???????????????????????? | | # # #???# #???????????????????????? | | ### #??# #???????????????????????? | | ?# ## ### #???????????????????????? | | # ### ### ##??????????????????????? | | #####?# #?# #??????????????????????? | | ?????# ## ### #?????????????????????? | +----------------------------------------------------+ Best States ------------- Heat Dissipation 25 Energy Generation 15 Energy Capacity 250 Matter Stores 300 Matter Capacity 300 Sight Range 16 Terrain Scan Density 10 Evasion (%) 40 Item Schematics ----------------- None Robot Schematics ------------------ None Fabricated ------------ Nothing Repaired ---------- Seismic Detector | 15% | -10/Materials Med. Laser | 25% | -10/Materials Lgt. Ion Engine | 45% | -10/Materials Studied --------- None Alien Tech Used ----------------- None Achievements -------------- None Challenges ------------ None Game ------ Seed AutogunTractorLauncher Manual? 0 Play Time 00:28:06 Cumulative 49.8 hours Start 2026.05.02 @ 00:35:36 End 2026.05.02 @ 01:01:52 Sessions 1 Manual Loads 0 Difficulty Rogue Special Mode None Game No. 38 Rogue 4 Adventurer 34 Explorer 0 Win Type - Total 0 Types 0/0/0/0/0/0/0/0/0/0 Lore% 30 Gallery% 25 Achievement% 24 Wizard Run 0 Options --------- Layout 1 ASCII 0 Keyboard 1 Movement Numpad Keybinds 0 Fullscreen 1 Font 24/Smallcaps Map View 50x40 Zoom Use 9% Tactical HUD 0 Map Filters NONE Filters NONE Steam 1 RUN: 5a637b25-4732-4e8d-8942-9525ff71f6db